[Event "Late-Titled-Tuesday-Blitz-December-26-2023"]
[Site "Chess.com"]
[Date "2023.12.26"]
[Round "9"]
[White "mbojan"]
[Black "lucasmito"]
[Result "1-0"]
[WhiteElo "2900"]
[BlackElo "2743"]
[TimeControl "180+1"]
[EndTime "15:43:54 PST"]
[Termination "mbojan won on time"]

1. a3 {[%clk 0:03:00.9]} 1... d5 {[%clk 0:02:59.2]} 2. h3 {[%clk 0:03:01.1]}
2... e5 {[%clk 0:02:58.8]} 3. e3 {[%clk 0:03:01.8]} 3... Nc6 {[%clk 0:02:54.7]}
4. d4 {[%clk 0:03:02.2]} 4... a6 {[%clk 0:02:47.5]} 5. Nf3 {[%clk 0:02:58.8]}
5... e4 {[%clk 0:02:46.7]} 6. Nfd2 {[%clk 0:02:58.9]} 6... f5 {[%clk 0:02:46.8]}
7. c4 {[%clk 0:02:58.9]} 7... Nf6 {[%clk 0:02:47.4]} 8. Nc3 {[%clk 0:02:59]}
8... Be6 {[%clk 0:02:46.5]} 9. Qb3 {[%clk 0:02:28]} 9... Na5 {[%clk 0:02:17.5]}
10. Qa4+ {[%clk 0:02:26.9]} 10... c6 {[%clk 0:02:18.1]} 11. c5 {[%clk
0:02:27.3]} 11... b5 {[%clk 0:02:09.3]} 12. cxb6 {[%clk 0:02:25.9]} 12... Qxb6
{[%clk 0:02:09.9]} 13. Qc2 {[%clk 0:02:02.3]} 13... Nb7 {[%clk 0:01:57.7]} 14.
Na4 {[%clk 0:02:00.5]} 14... Qc7 {[%clk 0:01:54.3]} 15. Nb3 {[%clk 0:02:00.5]}
15... Nd7 {[%clk 0:01:52.4]} 16. Bd2 {[%clk 0:01:58.2]} 16... Bd6 {[%clk
0:01:49.2]} 17. Rc1 {[%clk 0:01:57.6]} 17... Rc8 {[%clk 0:01:49.1]} 18. Bxa6
{[%clk 0:01:56.4]} 18... O-O {[%clk 0:01:46]} 19. Bxb7 {[%clk 0:01:39.7]} 19...
Qxb7 {[%clk 0:01:45]} 20. Nac5 {[%clk 0:01:39.9]} 20... Nxc5 {[%clk 0:01:41.9]}
21. dxc5 {[%clk 0:01:32.8]} 21... Be5 {[%clk 0:01:27.6]} 22. Bc3 {[%clk
0:00:55.5]} 22... d4 {[%clk 0:01:03.4]} 23. Nxd4 {[%clk 0:00:55.1]} 23... Bc4
{[%clk 0:01:03.9]} 24. b3 {[%clk 0:00:55.2]} 24... Bd3 {[%clk 0:01:03]} 25. Qb2
{[%clk 0:00:51.9]} 25... f4 {[%clk 0:01:01.8]} 26. Ne6 {[%clk 0:00:30.7]} 26...
fxe3 {[%clk 0:00:51.4]} 27. Nxf8 {[%clk 0:00:27.9]} 27... exf2+ {[%clk
0:00:28.8]} 28. Kxf2 {[%clk 0:00:28.8]} 28... Rxf8+ {[%clk 0:00:27.4]} 29. Kg1
{[%clk 0:00:27.8]} 29... Bf4 {[%clk 0:00:24.4]} 30. Bd4 {[%clk 0:00:22.5]} 30...
Qd7 {[%clk 0:00:12.8]} 31. Rd1 {[%clk 0:00:11]} 31... Qd5 {[%clk 0:00:10.1]} 32.
Rh2 {[%clk 0:00:09.1]} 32... Bg3 {[%clk 0:00:08.4]} 33. Kh1 {[%clk 0:00:08.3]}
33... Qg5 {[%clk 0:00:06.9]} 34. Bg1 {[%clk 0:00:06.1]} 34... h5 {[%clk
0:00:05.6]} 35. b4 {[%clk 0:00:06.1]} 35... h4 {[%clk 0:00:05.6]} 36. Qd4 {[%clk
0:00:05.3]} 36... Qf4 {[%clk 0:00:04.1]} 37. a4 {[%clk 0:00:04.7]} 37... Qf5
{[%clk 0:00:02.1]} 38. b5 {[%clk 0:00:03.8]} 38... cxb5 {[%clk 0:00:03]} 39.
axb5 {[%clk 0:00:04.6]} 39... Bxb5 {[%clk 0:00:03.5]} 40. Qb4 {[%clk 0:00:04.2]}
40... Bc6 {[%clk 0:00:03.4]} 41. Qb3+ {[%clk 0:00:04.4]} 41... Kh7 {[%clk
0:00:03.1]} 42. Qc3 {[%clk 0:00:04.2]} 42... e3 {[%clk 0:00:02.8]} 43. Qxe3
{[%clk 0:00:03.8]} 43... Bxh2 {[%clk 0:00:02.9]} 44. Bxh2 {[%clk 0:00:04.6]} 1-0

[Event "Late-Titled-Tuesday-Blitz-December-26-2023"]
[Site "Chess.com"]
[Date "2023.12.26"]
[Round "9"]
[White "IgorBjelobrk"]
[Black "StellarChess"]
[Result "0-1"]
[WhiteElo "2655"]
[BlackElo "2558"]
[TimeControl "180+1"]
[EndTime "15:44:00 PST"]
[Termination "StellarChess won by checkmate"]

1. d4 {[%clk 0:01:41.9]} 1... a6 {[%clk 0:03:00.9]} 2. e4 {[%clk 0:01:39.3]}
2... c6 {[%clk 0:02:43.8]} 3. Nf3 {[%clk 0:01:27.5]} 3... d5 {[%clk 0:02:36]} 4.
exd5 {[%clk 0:01:26.9]} 4... cxd5 {[%clk 0:02:34.2]} 5. Ne5 {[%clk 0:01:12.7]}
5... Nf6 {[%clk 0:02:02.1]} 6. Bd3 {[%clk 0:01:11.8]} 6... e6 {[%clk 0:01:59.8]}
7. O-O {[%clk 0:01:11.4]} 7... Be7 {[%clk 0:01:58.8]} 8. c3 {[%clk 0:01:11.2]}
8... O-O {[%clk 0:01:58.8]} 9. Re1 {[%clk 0:01:11.2]} 9... Nbd7 {[%clk
0:01:58.3]} 10. Nf3 {[%clk 0:01:11]} 10... b5 {[%clk 0:01:56.1]} 11. Bf4 {[%clk
0:01:10.3]} 11... Bb7 {[%clk 0:01:56.4]} 12. Nbd2 {[%clk 0:01:09.5]} 12... b4
{[%clk 0:01:52.4]} 13. cxb4 {[%clk 0:01:00.3]} 13... Bxb4 {[%clk 0:01:50.7]} 14.
a3 {[%clk 0:01:00.6]} 14... Be7 {[%clk 0:01:48.1]} 15. b4 {[%clk 0:00:58.6]}
15... a5 {[%clk 0:01:45.3]} 16. b5 {[%clk 0:00:58.5]} 16... a4 {[%clk
0:01:41.2]} 17. Qb1 {[%clk 0:00:49.5]} 17... Qa5 {[%clk 0:01:23.4]} 18. Ne5
{[%clk 0:00:42.9]} 18... Nxe5 {[%clk 0:00:52.3]} 19. dxe5 {[%clk 0:00:42.6]}
19... Ne4 {[%clk 0:00:52.5]} 20. Nxe4 {[%clk 0:00:42.9]} 20... dxe4 {[%clk
0:00:52.9]} 21. Bxe4 {[%clk 0:00:43.2]} 21... Bxe4 {[%clk 0:00:53.8]} 22. Rxe4
{[%clk 0:00:43.5]} 22... Rab8 {[%clk 0:00:47.3]} 23. Qc2 {[%clk 0:00:31.4]}
23... Rfc8 {[%clk 0:00:39.2]} 24. Qxa4 {[%clk 0:00:30.2]} 24... Qxa4 {[%clk
0:00:36.7]} 25. Rxa4 {[%clk 0:00:31.1]} 25... Rxb5 {[%clk 0:00:37.4]} 26. h3
{[%clk 0:00:21.1]} 26... g5 {[%clk 0:00:26.2]} 27. Bg3 {[%clk 0:00:20.2]} 27...
Rc3 {[%clk 0:00:23.9]} 28. Kh1 {[%clk 0:00:12]} 28... h5 {[%clk 0:00:19.5]} 29.
f3 {[%clk 0:00:11.4]} 29... h4 {[%clk 0:00:19.1]} 30. Bh2 {[%clk 0:00:11.7]}
30... Rbb3 {[%clk 0:00:18.3]} 31. Ra8+ {[%clk 0:00:10.9]} 31... Kg7 {[%clk
0:00:18.6]} 32. a4 {[%clk 0:00:11.2]} 32... Ra3 {[%clk 0:00:17.8]} 33. Rxa3
{[%clk 0:00:09.9]} 33... Rxa3 {[%clk 0:00:18.7]} 34. Bg1 {[%clk 0:00:08]} 34...
Ra1 {[%clk 0:00:18]} 35. Kh2 {[%clk 0:00:08.7]} 35... Bb4 {[%clk 0:00:12.7]} 36.
Bf2 {[%clk 0:00:05]} 36... Bc3 {[%clk 0:00:10.9]} 37. f4 {[%clk 0:00:02.3]}
37... gxf4 {[%clk 0:00:08.9]} 38. Bxh4 {[%clk 0:00:02.3]} 38... Bxe5 {[%clk
0:00:09.6]} 39. Ra5 {[%clk 0:00:01.4]} 39... f6 {[%clk 0:00:07.5]} 40. Bf2
{[%clk 0:00:01.4]} 40... Ra2 {[%clk 0:00:05.2]} 41. Kg1 {[%clk 0:00:01.8]} 41...
Ra1+ {[%clk 0:00:05]} 42. Kh2 {[%clk 0:00:02.4]} 42... Kg6 {[%clk 0:00:02.9]}
43. Ra6 {[%clk 0:00:01.7]} 43... Kf5 {[%clk 0:00:02.7]} 44. a5 {[%clk
0:00:01.3]} 44... Ra2 {[%clk 0:00:02.9]} 45. h4 {[%clk 0:00:02]} 45... Rxf2
{[%clk 0:00:02.5]} 46. Kh3 {[%clk 0:00:02.9]} 46... Rf1 {[%clk 0:00:02.5]} 47.
h5 {[%clk 0:00:03.8]} 47... Rh1# {[%clk 0:00:02.5]} 0-1

[Event "Late-Titled-Tuesday-Blitz-December-26-2023"]
[Site "Chess.com"]
[Date "2023.12.26"]
[Round "9"]
[White "staz_staz"]
[Black "cthulhuuu"]
[Result "1-0"]
[WhiteElo "2281"]
[BlackElo "2437"]
[TimeControl "180+1"]
[EndTime "15:44:02 PST"]
[Termination "staz_staz won by resignation"]

1. d4 {[%clk 0:03:00.9]} 1... Nf6 {[%clk 0:02:55.2]} 2. Nf3 {[%clk 0:02:59.8]}
2... g6 {[%clk 0:02:55.4]} 3. c4 {[%clk 0:02:58.5]} 3... Bg7 {[%clk 0:02:55.8]}
4. Nc3 {[%clk 0:02:57.6]} 4... O-O {[%clk 0:02:56.5]} 5. e4 {[%clk 0:02:55.1]}
5... d6 {[%clk 0:02:57.1]} 6. Be2 {[%clk 0:02:50.5]} 6... e5 {[%clk 0:02:57.1]}
7. Be3 {[%clk 0:02:49.7]} 7... Nc6 {[%clk 0:02:56.1]} 8. d5 {[%clk 0:02:49.2]}
8... Ne7 {[%clk 0:02:56.3]} 9. Nd2 {[%clk 0:02:49.2]} 9... Nd7 {[%clk
0:02:52.7]} 10. Rc1 {[%clk 0:02:46.6]} 10... f5 {[%clk 0:02:52.6]} 11. f3 {[%clk
0:02:46.1]} 11... f4 {[%clk 0:02:47.5]} 12. Bf2 {[%clk 0:02:45.8]} 12... g5
{[%clk 0:02:47.8]} 13. b4 {[%clk 0:02:44]} 13... Rf6 {[%clk 0:02:46.6]} 14. c5
{[%clk 0:02:44]} 14... a6 {[%clk 0:02:39.7]} 15. Nc4 {[%clk 0:02:42.2]} 15...
Qe8 {[%clk 0:02:35.8]} 16. a4 {[%clk 0:02:24]} 16... h5 {[%clk 0:02:26.9]} 17.
a5 {[%clk 0:01:57.9]} 17... Qg6 {[%clk 0:01:34.2]} 18. Na4 {[%clk 0:01:37.3]}
18... g4 {[%clk 0:01:24.2]} 19. h3 {[%clk 0:01:29.9]} 19... g3 {[%clk
0:00:15.3]} 20. Bg1 {[%clk 0:01:29.9]} 20... Bf8 {[%clk 0:00:15.8]} 21. cxd6
{[%clk 0:01:28.4]} 21... cxd6 {[%clk 0:00:14.7]} 22. Ncb6 {[%clk 0:01:29]} 22...
Rb8 {[%clk 0:00:15.1]} 23. Rxc8 {[%clk 0:01:20.7]} 23... Nxc8 {[%clk 0:00:14.8]}
24. Nxd7 {[%clk 0:01:20.1]} 24... Ra8 {[%clk 0:00:11.1]} 25. Nxf6+ {[%clk
0:01:19.2]} 25... Qxf6 {[%clk 0:00:12]} 26. Nb6 {[%clk 0:01:18.4]} 26... Nxb6
{[%clk 0:00:10.1]} 27. Bxb6 {[%clk 0:01:19.3]} 27... Rc8 {[%clk 0:00:10.5]} 28.
O-O {[%clk 0:01:16.8]} 28... Qf7 {[%clk 0:00:01.9]} 29. Qd2 {[%clk 0:01:15.8]}
29... Qd7 {[%clk 0:00:01.2]} 30. Rc1 {[%clk 0:01:13.7]} 30... Be7 {[%clk
0:00:01.7]} 31. Bd3 {[%clk 0:01:07.7]} 31... Kf8 {[%clk 0:00:01.8]} 32. Rxc8+
{[%clk 0:01:07.2]} 32... Qxc8 {[%clk 0:00:02.7]} 33. Qc2 {[%clk 0:01:08]} 33...
Qd7 {[%clk 0:00:03]} 34. Qc7 {[%clk 0:00:51.7]} 34... Ke8 {[%clk 0:00:03.1]} 35.
Qxd7+ {[%clk 0:00:48.1]} 35... Kxd7 {[%clk 0:00:04]} 36. Kf1 {[%clk 0:00:47.5]}
36... h4 {[%clk 0:00:04.5]} 37. Ke2 {[%clk 0:00:46.5]} 37... Kc8 {[%clk
0:00:04.7]} 38. Kd2 {[%clk 0:00:46.3]} 38... Kd7 {[%clk 0:00:05.4]} 39. Kc3
{[%clk 0:00:46.3]} 39... Kc8 {[%clk 0:00:05.8]} 40. b5 {[%clk 0:00:46.7]} 40...
axb5 {[%clk 0:00:05.9]} 41. Bxb5 {[%clk 0:00:47.6]} 41... Bd8 {[%clk 0:00:03.9]}
42. Bxd8 {[%clk 0:00:39.5]} 42... Kxd8 {[%clk 0:00:04.8]} 43. Kc4 {[%clk
0:00:38.8]} 43... Kc7 {[%clk 0:00:04.9]} 44. Be8 {[%clk 0:00:39]} 44... Kb8
{[%clk 0:00:05]} 45. Kb5 {[%clk 0:00:39.3]} 45... Ka7 {[%clk 0:00:05.5]} 46. Bf7
{[%clk 0:00:37.4]} 46... Kb8 {[%clk 0:00:05.4]} 47. Kb6 {[%clk 0:00:37.8]} 47...
Kc8 {[%clk 0:00:05.8]} 48. a6 {[%clk 0:00:34.1]} 48... Kb8 {[%clk 0:00:06.7]}
49. Be6 {[%clk 0:00:28.9]} 49... bxa6 {[%clk 0:00:06.7]} 50. Kxa6 {[%clk
0:00:29]} 50... Kc7 {[%clk 0:00:05.1]} 51. Ka7 {[%clk 0:00:29.5]} 51... Kd8
{[%clk 0:00:04.6]} 52. Kb7 {[%clk 0:00:29.8]} 52... Ke7 {[%clk 0:00:04.5]} 53.
Kc7 {[%clk 0:00:30.7]} 53... Kf6 {[%clk 0:00:03.2]} 54. Kxd6 {[%clk 0:00:31.6]}
54... Kg5 {[%clk 0:00:03.6]} 55. Kxe5 {[%clk 0:00:32.5]} 55... Kh5 {[%clk
0:00:03.7]} 56. Kxf4 {[%clk 0:00:33.4]} 56... Kh6 {[%clk 0:00:03.7]} 57. Kg4
{[%clk 0:00:34.3]} 57... Kg6 {[%clk 0:00:02.4]} 58. Kxh4 {[%clk 0:00:35.2]} 1-0

[Event "Late-Titled-Tuesday-Blitz-December-26-2023"]
[Site "Chess.com"]
[Date "2023.12.26"]
[Round "9"]
[White "a-z30"]
[Black "CheckThis4"]
[Result "1/2-1/2"]
[WhiteElo "2525"]
[BlackElo "2707"]
[TimeControl "180+1"]
[EndTime "15:44:11 PST"]
[Termination "Game drawn by repetition"]

1. c4 {[%clk 0:03:00.9]} 1... Nf6 {[%clk 0:02:59.5]} 2. Nc3 {[%clk 0:02:59.5]}
2... g6 {[%clk 0:03:00.1]} 3. g3 {[%clk 0:02:58.6]} 3... Bg7 {[%clk 0:03:00.5]}
4. Bg2 {[%clk 0:02:58.8]} 4... O-O {[%clk 0:03:01.1]} 5. Nf3 {[%clk 0:02:53.5]}
5... d6 {[%clk 0:03:01.4]} 6. O-O {[%clk 0:02:52.7]} 6... e5 {[%clk 0:03:00.9]}
7. d3 {[%clk 0:02:52]} 7... Nc6 {[%clk 0:02:57.6]} 8. Bg5 {[%clk 0:02:50.9]}
8... h6 {[%clk 0:02:56.5]} 9. Bxf6 {[%clk 0:02:50.8]} 9... Qxf6 {[%clk
0:02:57.4]} 10. Rb1 {[%clk 0:02:50.4]} 10... a5 {[%clk 0:02:56.1]} 11. a3 {[%clk
0:02:50.1]} 11... Qd8 {[%clk 0:02:49.8]} 12. b4 {[%clk 0:02:47.5]} 12... axb4
{[%clk 0:02:50.4]} 13. axb4 {[%clk 0:02:47]} 13... f5 {[%clk 0:02:47.4]} 14. Nd5
{[%clk 0:02:43.5]} 14... Ne7 {[%clk 0:02:44.8]} 15. Nd2 {[%clk 0:02:41.8]} 15...
Nxd5 {[%clk 0:02:41.6]} 16. cxd5 {[%clk 0:02:41]} 16... h5 {[%clk 0:02:35.7]}
17. b5 {[%clk 0:02:12.7]} 17... b6 {[%clk 0:02:33]} 18. Rb4 {[%clk 0:02:10.6]}
18... Bh6 {[%clk 0:02:28.3]} 19. Rc4 {[%clk 0:02:01.9]} 19... Ra2 {[%clk
0:02:22.8]} 20. e3 {[%clk 0:01:58.8]} 20... Bd7 {[%clk 0:02:11.7]} 21. Rb4
{[%clk 0:01:46.1]} 21... Kh7 {[%clk 0:02:02.2]} 22. Nc4 {[%clk 0:01:36.5]} 22...
f4 {[%clk 0:01:57.9]} 23. Ra4 {[%clk 0:01:12.6]} 23... Rxa4 {[%clk 0:01:48.3]}
24. Qxa4 {[%clk 0:01:13.5]} 24... f3 {[%clk 0:01:48.2]} 25. Bh1 {[%clk
0:01:13.3]} 25... g5 {[%clk 0:01:43]} 26. Ra1 {[%clk 0:01:04.3]} 26... g4 {[%clk
0:01:41.5]} 27. Nd2 {[%clk 0:01:02.7]} 27... Bf5 {[%clk 0:01:33]} 28. Ne4 {[%clk
0:01:01]} 28... Qd7 {[%clk 0:01:24.5]} 29. Qc4 {[%clk 0:00:57.8]} 29... Bxe4
{[%clk 0:01:14.1]} 30. Qxe4+ {[%clk 0:00:55.1]} 30... Qf5 {[%clk 0:01:09.9]} 31.
Qc4 {[%clk 0:00:53.9]} 31... Rf7 {[%clk 0:01:03.6]} 32. Ra7 {[%clk 0:00:50.2]}
32... Bg7 {[%clk 0:00:42.2]} 33. h3 {[%clk 0:00:46.1]} 33... e4 {[%clk
0:00:40.1]} 34. hxg4 {[%clk 0:00:34.6]} 34... hxg4 {[%clk 0:00:39.1]} 35. Qxe4
{[%clk 0:00:32.3]} 35... Qxe4 {[%clk 0:00:38.2]} 36. dxe4 {[%clk 0:00:33.2]}
36... Be5 {[%clk 0:00:36]} 37. Kf1 {[%clk 0:00:27.7]} 37... Kg6 {[%clk
0:00:36.1]} 38. Ra4 {[%clk 0:00:25.6]} 38... Kf6 {[%clk 0:00:35.5]} 39. Kg1
{[%clk 0:00:25.6]} 39... Rf8 {[%clk 0:00:31]} 40. Ra7 {[%clk 0:00:25.1]} 40...
Rc8 {[%clk 0:00:30.5]} 41. Ra6 {[%clk 0:00:24.2]} 41... Kg5 {[%clk 0:00:29.9]}
42. Ra7 {[%clk 0:00:23.5]} 42... Bg7 {[%clk 0:00:29]} 43. Ra4 {[%clk 0:00:23.9]}
43... Be5 {[%clk 0:00:28.2]} 44. Kf1 {[%clk 0:00:24.2]} 44... Kg6 {[%clk
0:00:26.9]} 45. Kg1 {[%clk 0:00:24.3]} 45... Kf7 {[%clk 0:00:26.6]} 46. Ra6
{[%clk 0:00:23.7]} 46... Ke7 {[%clk 0:00:26.7]} 47. Ra4 {[%clk 0:00:23.5]} 47...
Kd7 {[%clk 0:00:26.9]} 48. Kh2 {[%clk 0:00:23.2]} 48... Rh8+ {[%clk 0:00:26.4]}
49. Kg1 {[%clk 0:00:23.4]} 49... Rh7 {[%clk 0:00:26.6]} 50. Rb4 {[%clk
0:00:21.9]} 50... Kc8 {[%clk 0:00:25.5]} 51. Ra4 {[%clk 0:00:21.9]} 51... Kb7
{[%clk 0:00:25.7]} 52. Ra2 {[%clk 0:00:20.2]} 52... Rh8 {[%clk 0:00:25.1]} 53.
Ra4 {[%clk 0:00:18.1]} 53... Ra8 {[%clk 0:00:22.6]} 54. Rxa8 {[%clk 0:00:17.7]}
54... Kxa8 {[%clk 0:00:23.5]} 55. Kh2 {[%clk 0:00:17.7]} 55... Kb7 {[%clk
0:00:23.7]} 56. Bxf3 {[%clk 0:00:17]} 56... gxf3 {[%clk 0:00:23.4]} 57. Kh3
{[%clk 0:00:17.9]} 57... Kc8 {[%clk 0:00:20.6]} 58. Kg4 {[%clk 0:00:18]} 58...
Kd7 {[%clk 0:00:21.2]} 59. Kxf3 {[%clk 0:00:18.6]} 59... Ke7 {[%clk 0:00:21.8]}
60. Kg4 {[%clk 0:00:18.8]} 60... Kf6 {[%clk 0:00:21.7]} 61. f4 {[%clk
0:00:18.6]} 61... Bc3 {[%clk 0:00:22.3]} 62. Kf3 {[%clk 0:00:18.3]} 62... Bd2
{[%clk 0:00:22.3]} 63. g4 {[%clk 0:00:17.1]} 63... Kg6 {[%clk 0:00:22.3]} 64.
Ke2 {[%clk 0:00:16.2]} 64... Bc1 {[%clk 0:00:22.3]} 65. Kf3 {[%clk 0:00:16.6]}
65... Bb2 {[%clk 0:00:22.6]} 66. Ke2 {[%clk 0:00:14.8]} 66... Bc1 {[%clk
0:00:22.8]} 67. Kf3 {[%clk 0:00:15.1]} 67... Kf6 {[%clk 0:00:22.7]} 68. Ke2
{[%clk 0:00:14.7]} 68... Kg6 {[%clk 0:00:22.7]} 1/2-1/2

[Event "Late-Titled-Tuesday-Blitz-December-26-2023"]
[Site "Chess.com"]
[Date "2023.12.26"]
[Round "9"]
[White "IlanSchnaider"]
[Black "DishonorOnYourCow"]
[Result "1/2-1/2"]
[WhiteElo "2677"]
[BlackElo "2564"]
[TimeControl "180+1"]
[EndTime "15:44:16 PST"]
[Termination "Game drawn by repetition"]

1. e4 {[%clk 0:03:00.9]} 1... c5 {[%clk 0:02:59.3]} 2. Nf3 {[%clk 0:03:00.7]}
2... d6 {[%clk 0:02:59.6]} 3. Bb5+ {[%clk 0:03:00.5]} 3... Nd7 {[%clk
0:02:59.4]} 4. a4 {[%clk 0:03:00.7]} 4... a6 {[%clk 0:02:57.9]} 5. Bc4 {[%clk
0:03:00.5]} 5... e6 {[%clk 0:02:56.8]} 6. Nc3 {[%clk 0:03:00.6]} 6... Ngf6
{[%clk 0:02:54]} 7. O-O {[%clk 0:03:01.1]} 7... b6 {[%clk 0:02:52.7]} 8. d4
{[%clk 0:03:00.9]} 8... Be7 {[%clk 0:02:48.2]} 9. Re1 {[%clk 0:02:56.7]} 9...
cxd4 {[%clk 0:02:36]} 10. Nxd4 {[%clk 0:02:56.7]} 10... Ne5 {[%clk 0:02:30.4]}
11. Ba2 {[%clk 0:02:53]} 11... Qc7 {[%clk 0:02:20.8]} 12. Bf4 {[%clk 0:02:50.6]}
12... O-O {[%clk 0:02:18.2]} 13. Qe2 {[%clk 0:02:44.4]} 13... Bd7 {[%clk
0:02:12.8]} 14. Rad1 {[%clk 0:02:34.2]} 14... Rfc8 {[%clk 0:01:52.6]} 15. Nf3
{[%clk 0:02:17.5]} 15... b5 {[%clk 0:01:40.3]} 16. Bb3 {[%clk 0:01:41.3]} 16...
Rab8 {[%clk 0:01:21.8]} 17. axb5 {[%clk 0:01:37]} 17... axb5 {[%clk 0:01:22.7]}
18. Nxe5 {[%clk 0:01:33.1]} 18... dxe5 {[%clk 0:01:22.7]} 19. Bg3 {[%clk
0:01:33.6]} 19... b4 {[%clk 0:01:22.2]} 20. Nb1 {[%clk 0:01:28.2]} 20... Bb5
{[%clk 0:01:21.5]} 21. Qf3 {[%clk 0:01:27.3]} 21... Nd7 {[%clk 0:01:05.3]} 22.
Nd2 {[%clk 0:01:16.5]} 22... Nc5 {[%clk 0:01:04.5]} 23. Bc4 {[%clk 0:01:13.7]}
23... Na4 {[%clk 0:00:45.4]} 24. Bxb5 {[%clk 0:00:38.4]} 24... Rxb5 {[%clk
0:00:46.3]} 25. b3 {[%clk 0:00:38.7]} 25... Nb6 {[%clk 0:00:37.5]} 26. Qd3
{[%clk 0:00:32.4]} 26... Rc5 {[%clk 0:00:36.2]} 27. Nf3 {[%clk 0:00:33]} 27...
f6 {[%clk 0:00:25.2]} 28. h4 {[%clk 0:00:27.3]} 28... Rxc2 {[%clk 0:00:24.2]}
29. h5 {[%clk 0:00:27.8]} 29... Rc3 {[%clk 0:00:23.5]} 30. Qb5 {[%clk
0:00:27.4]} 30... Rxb3 {[%clk 0:00:21.4]} 31. h6 {[%clk 0:00:23.2]} 31... gxh6
{[%clk 0:00:21.4]} 32. Nd4 {[%clk 0:00:17.8]} 32... Rxg3 {[%clk 0:00:17.4]} 33.
fxg3 {[%clk 0:00:06.2]} 33... Qc5 {[%clk 0:00:17.1]} 34. Qa6 {[%clk 0:00:03.8]}
34... exd4 {[%clk 0:00:16.4]} 35. Rc1 {[%clk 0:00:03.2]} 35... Qxc1 {[%clk
0:00:15.8]} 36. Rxc1 {[%clk 0:00:04.1]} 36... Rxc1+ {[%clk 0:00:16]} 37. Kh2
{[%clk 0:00:05]} 37... Nc4 {[%clk 0:00:16.1]} 38. Qxe6+ {[%clk 0:00:04.7]} 38...
Kf8 {[%clk 0:00:16.2]} 39. Qc8+ {[%clk 0:00:04.7]} 39... Kf7 {[%clk 0:00:16.6]}
40. Qf5 {[%clk 0:00:05.6]} 40... Ne5 {[%clk 0:00:16.4]} 41. Qxh7+ {[%clk
0:00:05.8]} 41... Ke6 {[%clk 0:00:17]} 42. Qg8+ {[%clk 0:00:06]} 42... Kd6
{[%clk 0:00:17]} 43. Qd5+ {[%clk 0:00:06.7]} 43... Kc7 {[%clk 0:00:17]} 44. Qxd4
{[%clk 0:00:07.3]} 44... Rc6 {[%clk 0:00:16.2]} 45. Qa7+ {[%clk 0:00:07.1]}
45... Kd6 {[%clk 0:00:16.4]} 46. Qb8+ {[%clk 0:00:07.3]} 46... Ke6 {[%clk
0:00:16.7]} 47. Qg8+ {[%clk 0:00:07.7]} 47... Nf7 {[%clk 0:00:16.3]} 48. Qb8
{[%clk 0:00:06.1]} 48... Ne5 {[%clk 0:00:12.4]} 49. Qb5 {[%clk 0:00:05]} 49...
Bd6 {[%clk 0:00:11.8]} 50. Qb7 {[%clk 0:00:03]} 50... Rc7 {[%clk 0:00:11.5]} 51.
Qd5+ {[%clk 0:00:02.7]} 51... Kd7 {[%clk 0:00:12.4]} 52. Qb5+ {[%clk 0:00:03]}
52... Kc8 {[%clk 0:00:11.8]} 53. Qe8+ {[%clk 0:00:03.3]} 53... Kb7 {[%clk
0:00:12.3]} 54. Qb5+ {[%clk 0:00:04.2]} 54... Kc8 {[%clk 0:00:12.5]} 55. Qa6+
{[%clk 0:00:04.2]} 55... Rb7 {[%clk 0:00:12.4]} 56. Qxd6 {[%clk 0:00:04.2]}
56... b3 {[%clk 0:00:12.8]} 57. Qe6+ {[%clk 0:00:04.6]} 57... Kb8 {[%clk
0:00:12.4]} 58. Qe8+ {[%clk 0:00:04.7]} 58... Ka7 {[%clk 0:00:12.7]} 59. Qa4+
{[%clk 0:00:05.3]} 59... Kb8 {[%clk 0:00:13.3]} 60. Qe8+ {[%clk 0:00:05.4]}
60... Ka7 {[%clk 0:00:13.5]} 61. Qa4+ {[%clk 0:00:04.4]} 61... Kb8 {[%clk
0:00:13.9]} 62. Qe8+ {[%clk 0:00:04]} 1/2-1/2